fUSD/lending_fUSD_20241121
["ID","MTS","AMOUNT","RATE_DAILY","PERIOD"]
[342879777,1732192248287,-500.0,0.00041095,18]
[342879778,1732192248297,-922.31,0.00041095,18]
[342879780,1732192248306,-500.0,0.00041095,18]
[342879782,1732192248316,-500.0,0.00041095,18]
[342879785,1732192248325,-500.0,0.00041095,18]
[342879786,1732192248334,-500.0,0.00041095,18]
[342879788,1732192248344,-500.0,0.00041095,18]
[342879790,1732192248353,-500.0,0.00041095,18]
[342879793,1732192248363,-2023.45,0.00041095,18]
[342879795,1732192248372,-1843.79,0.00041095,18]
[342879797,1732192248381,-211.08,0.00041095,7]
[342879798,1732192248391,-523.34,0.00041095,18]
[342879801,1732192248400,-408.3202117,0.00041095,18]
[342879802,1732192248410,-500.0,0.00041095,18]
[342879804,1732192248419,-519.56,0.00041095,18]
[342879806,1732192248431,-500.0,0.00041095,18]
[342879809,1732192248441,-158.69197378,0.00041095,18]
[342879811,1732192248450,-167.85457185,0.00041095,18]
[342879813,1732192248461,-500.0,0.00041095,18]
[342879815,1732192248471,-1683.91,0.00041095,18]
[342879817,1732192248480,-500.0,0.00041095,18]
[342879819,1732192248490,-500.0,0.00041095,18]
[342879821,1732192248499,-500.0,0.00041095,18]
[342879823,1732192248509,-500.0,0.00041095,18]
[342879824,1732192248518,-500.0,0.00041095,18]
[342879826,1732192248528,-592.34,0.00041095,18]
[342879828,1732192248537,-1696.12,0.00041095,18]
[342879831,1732192248548,-500.0,0.00041095,18]
[342879832,1732192248558,-500.0,0.00041095,18]
[342879834,1732192248567,-646.15,0.00041095,18]
[342879836,1732192248577,-500.0,0.00041095,18]
[342879838,1732192248586,-1812.08,0.00041095,18]
[342879840,1732192248596,-500.0,0.00041095,18]
[342879842,1732192248605,-1815.91,0.00041095,7]
[342879844,1732192248615,-500.0,0.00041095,18]
[342879846,1732192248625,-2000.0,0.00041095,30]
[342879848,1732192248634,-925.38,0.00041095,18]
[342879850,1732192248647,-1067.36,0.00041095,18]
[342879852,1732192248656,-500.0,0.00041095,18]
[342879854,1732192248666,-494.77394175,0.00041095,18]
[342879856,1732192248686,-500.0,0.00041095,18]
[342879858,1732192248698,-734.74789793,0.00041095,18]
[342879864,1732192248749,-976.94,0.00041095,18]
[342879867,1732192248773,-605.33210207,0.00041095,18]
[342879869,1732192248783,-500.0,0.00041095,18]
[342879871,1732192248793,-500.0,0.00041095,18]
[342879873,1732192248804,-500.0,0.00041095,18]
[342879875,1732192248814,-500.0,0.00041095,18]
[342879877,1732192248824,-500.0,0.00041095,18]
[342879879,1732192248834,-593.86,0.00041095,18]
[342879881,1732192248844,-912.44,0.00041095,18]
[342879883,1732192248853,-966.95,0.00041095,18]
[342879885,1732192248864,-500.0,0.00041095,18]
[342879887,1732192248874,-500.0,0.00041095,18]
[342879889,1732192248883,-656.93,0.00041095,18]
[342879891,1732192248893,-500.0,0.00041095,18]
[342879893,1732192248903,-500.0,0.00041095,18]
[342879895,1732192248913,-500.0,0.00041095,18]
[342879897,1732192248923,-500.0,0.00041095,18]
[342879899,1732192248937,-1056.77,0.00041095,18]
[342879901,1732192248947,-500.0,0.00041095,18]
[342879903,1732192248957,-500.0,0.00041095,18]
[342879905,1732192248967,-804.96,0.00041095,18]
[342879907,1732192248978,-500.0,0.00041095,18]
[342879909,1732192248988,-570.1,0.00041095,18]
[342879911,1732192248999,-500.0,0.00041095,18]
[342879913,1732192249009,-500.0,0.00041095,18]
[342879915,1732192249019,-542.45,0.00041095,18]
[342879917,1732192249029,-500.0,0.00041095,18]
[342879919,1732192249039,-771.35,0.00041095,18]
[342879921,1732192249050,-500.0,0.00041095,18]
[342879923,1732192249060,-945.74,0.00041095,18]
[342879925,1732192249070,-500.0,0.00041095,18]
[342879927,1732192249080,-1637.5,0.00041095,18]
[342879929,1732192249090,-1119.89,0.00041095,18]
[342879931,1732192249099,-500.0,0.00041095,18]
[342879933,1732192249109,-500.0,0.00041095,18]
[342879935,1732192249119,-352.62344578,0.00041095,18]
[342879937,1732192249129,-1895.48,0.00041095,18]
[342879939,1732192249139,-1192.18,0.00041095,18]
[342879941,1732192249148,-500.0,0.00041095,18]
[342879943,1732192249157,-500.0,0.00041095,18]
[342879945,1732192249167,-500.0,0.00041095,18]
[342879947,1732192249176,-500.0,0.00041095,18]
[342879949,1732192249191,-1756.52,0.00041095,18]
[342879951,1732192249201,-2351.13,0.00041095,18]
[342879953,1732192249210,-549.26,0.00041095,18]
[342879955,1732192249219,-1465.86,0.00041095,18]
[342879957,1732192249229,-500.0,0.00041095,18]
[342879959,1732192249238,-500.0,0.00041095,18]
[342879961,1732192249248,-1224.35,0.00041095,18]
[342879963,1732192249257,-500.0,0.00041095,18]
[342879965,1732192249266,-500.0,0.00041095,18]
[342879968,1732192249277,-500.0,0.00041095,18]
[342879969,1732192249287,-508.31,0.00041095,18]
[342879970,1732192249296,-535.39,0.00041095,18]
[342879971,1732192249306,-500.0,0.00041095,18]
[342879972,1732192249315,-500.0,0.00041095,18]
[342879973,1732192249324,-500.0,0.00041095,18]
[342879974,1732192249333,-500.0,0.00041095,18]
[342879975,1732192249342,-1684.19,0.00041095,18]
[342879976,1732192249352,-1627.65,0.00041095,18]
[342879977,1732192249361,-500.0,0.00041095,18]
[342879978,1732192249370,-500.0,0.00041095,18]
[342879979,1732192249379,-500.0,0.00041095,18]
[342879981,1732192249389,-500.0,0.00041095,18]
[342879983,1732192249399,-500.0,0.00041095,18]
[342879985,1732192249408,-608.95,0.00041095,18]
[342879987,1732192249418,-1233.11,0.00041095,18]
[342879989,1732192249427,-598.79,0.00041095,18]
[342879991,1732192249439,-499.26488487,0.00041095,18]
[342879993,1732192249449,-141.05260372,0.00041095,18]
[342879998,1732192249480,-563.99739628,0.00041095,18]
[342880000,1732192249490,-642.85,0.00041095,18]
[342880002,1732192249500,-1870.59,0.00041095,18]
[342880004,1732192249511,-1492.67,0.00041095,18]
[342880006,1732192249520,-500.0,0.00041095,18]
[342880008,1732192249530,-500.0,0.00041095,18]
[342880010,1732192249539,-500.0,0.00041095,18]
[342880012,1732192249548,-500.0,0.00041095,18]
[342880014,1732192249557,-816.79,0.00041095,18]
[342880016,1732192249566,-2104.23,0.00041095,18]
[342880017,1732192249575,-500.0,0.00041095,18]
[342880019,1732192249585,-539.03,0.00041095,18]
[342880021,1732192249594,-500.0,0.00041095,18]
[342880023,1732192249603,-500.0,0.00041095,18]
[342880025,1732192249612,-1778.67,0.00041095,18]
[342880027,1732192249621,-259.10770468,0.00041095,18]
[342880030,1732192249631,-500.0,0.00041095,18]
[342880032,1732192249640,-500.0,0.00041095,18]
[342880033,1732192249655,-500.0,0.00041095,18]
[342880036,1732192249668,-1412.99,0.00041095,18]
[342880037,1732192249677,-500.0,0.00041095,18]
[342880039,1732192249693,-500.0,0.00041095,18]
[342880042,1732192249703,-500.0,0.00041095,18]
[342880043,1732192249712,-640.67,0.00041095,18]
[342880045,1732192249722,-890.13,0.00041095,18]
[342880047,1732192249731,-500.0,0.00041095,18]
[342880049,1732192249741,-500.0,0.00041095,18]
[342880051,1732192249751,-500.0,0.00041095,18]
[342880053,1732192249760,-643.67,0.00041095,18]
[342880055,1732192249769,-500.0,0.00041095,18]
[342880057,1732192249778,-34.8007273,0.00041095,18]
[342880139,1732192250544,-465.1992727,0.00041095,18]
[342880141,1732192250554,-526.41,0.00041095,18]
[342880143,1732192250563,-500.0,0.00041095,18]
[342880145,1732192250572,-500.0,0.00041095,18]
[342880147,1732192250582,-831.2,0.00041095,18]
[342880149,1732192250591,-500.0,0.00041095,18]
[342880151,1732192250601,-644.02,0.00041095,18]
[342880153,1732192250611,-383.22742433,0.00041095,18]
[342880155,1732192250620,-567.17,0.00041095,18]
[342880157,1732192250629,-853.97,0.00041095,18]
[342880159,1732192250639,-1099.82,0.00041095,18]
[342880161,1732192250649,-500.0,0.00041095,18]
[342880163,1732192250659,-500.0,0.00041095,18]
[342880165,1732192250671,-500.0,0.00041095,18]
[342880167,1732192250682,-500.0,0.00041095,18]
[342880169,1732192250692,-887.39,0.00041095,18]
[342880171,1732192250702,-881.34,0.00041095,18]
[342880173,1732192250712,-500.0,0.00041095,18]
[342880175,1732192250723,-500.0,0.00041095,18]
[342880177,1732192250732,-803.78,0.00041095,18]
[342880179,1732192250743,-1181.66,0.00041095,18]
[342880181,1732192250752,-1376.96,0.00041095,18]
[342880183,1732192250762,-500.0,0.00041095,18]
[342880185,1732192250771,-500.0,0.00041095,18]
[342880187,1732192250780,-924.64,0.00041095,18]
[342880189,1732192250789,-836.58,0.00041095,18]
[342880191,1732192250799,-500.0,0.00041095,18]
[342880193,1732192250809,-500.0,0.00041095,18]
[342880195,1732192250819,-238.43870151,0.00041095,18]
[342880197,1732192250830,-1642.77,0.00041095,18]
[342880200,1732192250839,-643.63,0.00041095,18]
[342880201,1732192250849,-500.0,0.00041095,18]
[342880204,1732192250860,-536.59,0.00041095,18]
[342880206,1732192250870,-2209.06,0.00041095,18]
[342880208,1732192250880,-1553.81,0.00041095,18]
[342880210,1732192250890,-588.54,0.00041095,18]
[342880212,1732192250900,-500.0,0.00041095,18]
[342880214,1732192250911,-500.0,0.00041095,18]
[342880216,1732192250921,-500.0,0.00041095,18]
[342880218,1732192250934,-721.18,0.00041095,18]
[342880219,1732192250944,-600.55,0.00041095,18]
[342880220,1732192250954,-500.0,0.00041095,18]
[342880221,1732192250965,-500.0,0.00041095,18]
[342880222,1732192250975,-500.0,0.00041095,18]
[342880223,1732192250985,-500.0,0.00041095,18]
[342880224,1732192250995,-500.0,0.00041095,18]
[342880225,1732192251005,-500.0,0.00041095,18]
[342880226,1732192251015,-1101.84,0.00041095,18]
[342880227,1732192251025,-1177.55,0.00041095,18]
[342880229,1732192251034,-2244.08,0.00041095,18]
[342880230,1732192251045,-500.0,0.00041095,18]
[342880233,1732192251055,-500.0,0.00041095,18]
[342880235,1732192251065,-500.0,0.00041095,18]
[342880237,1732192251074,-500.0,0.00041095,18]
[342880238,1732192251083,-1070.89,0.00041095,18]
[342880240,1732192251093,-500.0,0.00041095,18]
[342880243,1732192251102,-271.01962399,0.00041095,18]
[342880245,1732192251111,-1972.07,0.00041095,18]
[342880246,1732192251120,-500.0,0.00041095,18]
[342880248,1732192251129,-914.86,0.00041095,18]
[342880250,1732192251138,-500.0,0.00041095,18]
[342880252,1732192251147,-500.0,0.00041095,18]
[342880254,1732192251156,-500.0,0.00041095,18]
[342880256,1732192251165,-1054.04,0.00041095,18]
[342880258,1732192251174,-509.13424545,0.00041095,18]
[342880260,1732192251187,-584.89,0.00041095,18]
[342880262,1732192251196,-1517.05,0.00041095,18]
[342880265,1732192251206,-723.01,0.00041095,18]
[342880267,1732192251215,-500.0,0.00041095,18]
[342880269,1732192251224,-819.42,0.00041095,18]
[342880271,1732192251235,-500.0,0.00041095,18]
[342880273,1732192251244,-2735.82,0.00041095,18]
[342880275,1732192251253,-500.0,0.00041095,18]
[342880277,1732192251262,-896.82,0.00041095,18]
[342880279,1732192251271,-500.0,0.00041095,18]
[342880281,1732192251281,-500.0,0.00041095,18]
[342880283,1732192251290,-500.0,0.00041095,18]
[342880285,1732192251299,-500.0,0.00041095,18]
[342880287,1732192251308,-500.0,0.00041095,18]
[342880289,1732192251317,-1394.62,0.00041095,18]
[342880291,1732192251326,-500.0,0.00041095,18]
[342880293,1732192251335,-693.99,0.00041095,18]
[342880295,1732192251345,-500.0,0.00041095,18]
[342880297,1732192251354,-500.0,0.00041095,18]
[342880299,1732192251363,-500.0,0.00041095,18]
[342880301,1732192251373,-451.23216482,0.00041095,18]
[342880303,1732192251382,-500.0,0.00041095,18]
[342880305,1732192251391,-500.0,0.00041095,18]
[342880307,1732192251401,-500.0,0.00041095,18]
[342880309,1732192251410,-500.0,0.00041095,18]
[342880311,1732192251420,-500.0,0.00041095,18]
[342880313,1732192251433,-1192.73,0.00041095,18]
[342880315,1732192251443,-177.96559311,0.00041095,18]
[342880317,1732192251453,-624.1,0.00041095,18]
[342880319,1732192251462,-500.0,0.00041095,18]
[342880321,1732192251472,-739.91,0.00041095,18]
[342880323,1732192251481,-834.69,0.00041095,18]
[342880325,1732192251490,-1317.0,0.00041095,18]
[342880327,1732192251500,-500.0,0.00041095,18]
[342880329,1732192251509,-500.0,0.00041095,18]
[342880331,1732192251518,-739.36,0.00041095,18]
[342880333,1732192251528,-500.0,0.00041095,18]
[342880335,1732192251536,-2823.12,0.00041095,18]
[342880337,1732192251546,-500.0,0.00041095,18]
[342880339,1732192251554,-500.0,0.00041095,18]
[342880341,1732192251564,-500.0,0.00041095,18]
[342880343,1732192251573,-723.48,0.00041095,18]
[342880345,1732192251582,-1153.89,0.00041095,18]
[342880347,1732192251591,-500.0,0.00041095,18]
[342880349,1732192251600,-2930.26,0.00041095,18]
[342880351,1732192251610,-500.0,0.00041095,18]
[342880352,1732192251619,-500.0,0.00041095,18]
[342880355,1732192251629,-573.13,0.00041095,18]
[342880357,1732192251639,-2380.98,0.00041095,18]
[342880359,1732192251653,-500.0,0.00041095,18]
[342880361,1732192251662,-2023.06,0.00041095,18]
[342880363,1732192251671,-500.0,0.00041095,18]
[342880365,1732192251682,-154.50161447,0.00041095,18]
[342880367,1732192251693,-500.0,0.00041095,18]
[342880368,1732192251702,-500.0,0.00041095,18]
[342880371,1732192251712,-500.0,0.00041095,18]
[342880373,1732192251723,-504.55598623,0.00041095,18]
[342880375,1732192251733,-500.0,0.00041095,18]
[342880377,1732192251744,-500.0,0.00041095,18]
[342880379,1732192251753,-500.0,0.00041095,18]
[342880381,1732192251762,-500.0,0.00041095,18]
[342880383,1732192251772,-739.14,0.00041095,18]
[342880385,1732192251781,-500.0,0.00041095,18]
[342880387,1732192251790,-565.37,0.00041095,18]
[342880389,1732192251800,-500.0,0.00041095,18]
[342880391,1732192251810,-941.68,0.00041095,18]
[342880393,1732192251820,-788.33,0.00041095,18]
[342880395,1732192251830,-500.0,0.00041095,18]
[342880397,1732192251839,-500.0,0.00041095,18]
[342880399,1732192251849,-302.50181286,0.00041095,18]
[342880401,1732192251859,-500.0,0.00041095,18]
[342880403,1732192251868,-500.0,0.00041095,18]
[342880405,1732192251878,-2502.06,0.00041095,18]
[342880407,1732192251887,-653.46,0.00041095,18]
[342880409,1732192251897,-834.21,0.00041095,18]
[342880411,1732192251906,-500.0,0.00041095,18]
[342880413,1732192251915,-500.0,0.00041095,18]
[342880415,1732192251925,-895.85,0.00041095,18]
[342880417,1732192251939,-550.10156196,0.00041095,18]
[342880419,1732192251949,-500.0,0.00041095,18]
[342880421,1732192251958,-500.0,0.00041095,18]
[342880423,1732192251967,-596.59,0.00041095,18]
[342880425,1732192251976,-500.0,0.00041095,18]
[342880427,1732192251985,-500.0,0.00041095,18]
[342880429,1732192251995,-717.36,0.00041095,18]
[342880431,1732192252005,-722.44,0.00041095,18]
[342880433,1732192252014,-500.0,0.00041095,18]
[342880435,1732192252024,-612.76,0.00041095,18]
[342880437,1732192252034,-500.0,0.00041095,18]
[342880439,1732192252043,-500.0,0.00041095,18]
[342880441,1732192252053,-1028.51,0.00041095,18]
[342880443,1732192252062,-603.77,0.00041095,18]
[342880445,1732192252071,-500.0,0.00041095,18]
[342880447,1732192252081,-500.0,0.00041095,18]
[342880449,1732192252091,-2554.37,0.00041095,18]
[342880451,1732192252100,-777.93,0.00041095,18]
[342880453,1732192252109,-620.24513101,0.00041095,18]
[342880455,1732192252119,-2881.99,0.00041095,18]
[342880457,1732192252129,-500.0,0.00041095,18]
[342880459,1732192252138,-954.7,0.00041095,18]
[342880461,1732192252147,-500.0,0.00041095,18]
[342880463,1732192252158,-690.01,0.00041095,18]
[342880465,1732192252167,-737.82,0.00041095,18]
[342880467,1732192252177,-377.05680355,0.00041095,18]
[342880469,1732192252191,-541.09624249,0.00041095,18]
[342880471,1732192252202,-1184.56,0.00041095,18]
[342880473,1732192252212,-500.0,0.00041095,18]
[342880475,1732192252222,-1072.12,0.00041095,18]
[342880477,1732192252232,-500.0,0.00041095,18]
[342880479,1732192252241,-500.0,0.00041095,18]
[342880481,1732192252251,-1271.49,0.00041095,18]
[342880483,1732192252260,-500.0,0.00041095,18]
[342880485,1732192252270,-500.0,0.00041095,18]
[342880487,1732192252279,-500.0,0.00041095,18]
[342880489,1732192252288,-2546.82,0.00041095,18]
[342880491,1732192252297,-500.0,0.00041095,18]
[342880493,1732192252307,-603.75,0.00041095,18]
[342880495,1732192252317,-500.0,0.00041095,18]
[342880497,1732192252327,-915.45,0.00041095,7]
[342880499,1732192252337,-500.0,0.00041095,18]
[342880501,1732192252347,-500.0,0.00041095,18]
[342880503,1732192252356,-500.0,0.00041095,18]
[342880506,1732192252366,-500.0,0.00041095,18]
[342880508,1732192252376,-184.18595368,0.00041095,18]
[342880510,1732192252385,-1129.02,0.00041095,18]
[342880512,1732192252395,-734.5,0.00041095,18]
[342880514,1732192252405,-778.52,0.00041095,18]
[342880516,1732192252414,-500.0,0.00041095,18]
[342880518,1732192252423,-500.0,0.00041095,18]
[342880520,1732192252434,-770.82,0.00041095,18]
[342880522,1732192252444,-529.73,0.00041095,18]
[342880523,1732192252454,-338.45487709,0.00041095,18]
[342880524,1732192252463,-1058.93,0.00041095,18]
[342880525,1732192252472,-500.0,0.00041095,18]
[342880526,1732192252481,-1985.97,0.00041095,18]
[342880527,1732192252490,-500.0,0.00041095,18]
[342880528,1732192252499,-500.0,0.00041095,18]
[342880529,1732192252508,-500.0,0.00041095,18]
[342880530,1732192252517,-3243.45,0.00041095,18]
[342880531,1732192252526,-500.0,0.00041095,18]
[342880532,1732192252535,-500.0,0.00041095,18]
[342880534,1732192252544,-2680.19,0.00041095,18]
[342880536,1732192252553,-674.92,0.00041095,18]
[342880538,1732192252562,-740.31,0.00041095,18]
[342880540,1732192252572,-500.0,0.00041095,18]
[342880542,1732192252581,-500.0,0.00041095,18]
[342880544,1732192252590,-500.0,0.00041095,18]
[342880546,1732192252599,-500.0,0.00041095,18]
[342880548,1732192252608,-500.0,0.00041095,18]
[342880550,1732192252617,-500.0,0.00041095,18]
[342880552,1732192252627,-2421.19,0.00041095,18]
[342880554,1732192252637,-500.0,0.00041095,18]
[342880556,1732192252648,-981.17,0.00041095,18]
[342880558,1732192252657,-500.0,0.00041095,18]
[342880560,1732192252667,-500.0,0.00041095,18]
[342880562,1732192252677,-500.0,0.00041095,18]
[342880564,1732192252690,-561.38,0.00041095,18]
[342880566,1732192252700,-2282.93,0.00041095,18]
[342880606,1732192253078,-500.0,0.00041095,18]
[342880610,1732192253112,-971.69,0.00041095,18]
[342880612,1732192253122,-500.0,0.00041095,18]
[342880614,1732192253132,-373.74316737,0.00041095,18]
[342880616,1732192253141,-500.0,0.00041095,18]
[342880618,1732192253151,-500.0,0.00041095,18]
[342880620,1732192253160,-500.0,0.00041095,18]
[342880622,1732192253169,-500.0,0.00041095,18]
[342880624,1732192253178,-500.0,0.00041095,18]
[342880626,1732192253190,-500.0,0.00041095,18]
[342880628,1732192253199,-652.27,0.00041095,18]
[342880630,1732192253208,-500.0,0.00041095,18]
[342880632,1732192253217,-500.0,0.00041095,18]
[342880634,1732192253226,-500.0,0.00041095,18]
[342880636,1732192253235,-500.0,0.00041095,18]
[342880638,1732192253244,-2061.78,0.00041095,18]
[342880640,1732192253254,-500.0,0.00041095,18]
[342880642,1732192253263,-528.83,0.00041095,18]
[342880644,1732192253272,-992.33,0.00041095,18]
[342880646,1732192253281,-1540.47,0.00041095,18]
[342880648,1732192253290,-701.06,0.00041095,18]
[342880650,1732192253299,-500.0,0.00041095,18]
[342880652,1732192253309,-775.81,0.00041095,18]
[342880654,1732192253318,-500.0,0.00041095,18]
[342880656,1732192253327,-500.0,0.00041095,18]
[342880658,1732192253336,-630.52,0.00041095,18]
[342880660,1732192253346,-1342.89,0.00041095,18]
[342880662,1732192253355,-500.0,0.00041095,18]
[342880664,1732192253364,-500.0,0.00041095,18]
[342880666,1732192253373,-500.0,0.00041095,18]
[342880668,1732192253383,-1836.36,0.00041095,18]
[342880670,1732192253393,-701.52,0.00041095,18]
[342880672,1732192253402,-500.0,0.00041095,18]
[342880674,1732192253412,-500.0,0.00041095,18]
[342880676,1732192253421,-852.16,0.00041095,18]
[342880679,1732192253431,-500.0,0.00041095,18]
[342880680,1732192253443,-500.0,0.00041095,18]
[342880682,1732192253452,-500.0,0.00041095,18]
[342880685,1732192253462,-1448.84,0.00041095,18]
[342880687,1732192253471,-500.0,0.00041095,18]
[342880688,1732192253480,-994.83,0.00041095,18]
[342880690,1732192253490,-590.56081439,0.00041095,18]
[342880692,1732192253500,-1014.6,0.00041095,18]
[342880694,1732192253510,-500.0,0.00041095,18]
[342880697,1732192253519,-506.55371147,0.00041095,18]
[342880699,1732192253528,-533.88,0.00041095,18]
[342880701,1732192253538,-439.49687515,0.00041095,18]
[342880702,1732192253547,-500.0,0.00041095,2]
[342880705,1732192253557,-500.0,0.00041095,18]
[342880707,1732192253566,-852.65,0.00041095,18]
[342880709,1732192253575,-4191.48,0.00041095,18]
[342880711,1732192253584,-500.0,0.00041095,18]
[342880713,1732192253594,-500.0,0.00041095,18]
[342880715,1732192253604,-500.0,0.00041095,18]
[342880717,1732192253614,-500.0,0.00041095,18]
[342880719,1732192253623,-934.63,0.00041095,18]
[342880721,1732192253632,-1365.58,0.00041095,18]
[342880723,1732192253642,-753.77,0.00041095,18]
[342880725,1732192253654,-1092.112539,0.00041095,18]
[342880727,1732192253664,-2125.69,0.00041095,18]
[342880729,1732192253673,-500.0,0.00041095,18]
[342880731,1732192253685,-793.34,0.00041095,18]
[342880733,1732192253695,-182.127096,0.00041095,18]
[342880735,1732192253704,-154.589909,0.00041095,18]
[342880737,1732192253714,-500.0,0.00041095,18]
[342880739,1732192253727,-500.0,0.00041095,18]
[342880741,1732192253737,-500.0,0.00041095,18]
[342880743,1732192253746,-1763.83,0.00041095,18]
[342880745,1732192253756,-716.84,0.00041095,18]
[342880747,1732192253766,-955.74,0.00041095,18]
[342880749,1732192253775,-914.39,0.00041095,18]
[342880751,1732192253785,-2996.09,0.00041095,18]
[342880753,1732192253794,-1038.84,0.00041095,18]
[342880755,1732192253804,-500.0,0.00041095,18]
[342880757,1732192253813,-689.64,0.00041095,18]
[342880759,1732192253823,-1569.2,0.00041095,18]
[342880761,1732192253832,-500.0,0.00041095,18]
[342880763,1732192253842,-1407.64,0.00041095,18]
[342880765,1732192253852,-500.0,0.00041095,18]
[342880766,1732192253861,-500.0,0.00041095,18]
[342880767,1732192253870,-500.0,0.00041095,18]
[342880768,1732192253879,-769.69,0.00041095,18]
[342880769,1732192253889,-500.0,0.00041095,18]
[342880770,1732192253898,-3098.01,0.00041095,18]
[342880771,1732192253907,-753.78,0.00041095,18]
[342880772,1732192253916,-1102.77,0.00041095,18]
[342880773,1732192253926,-500.0,0.00041095,18]
[342880774,1732192253938,-3203.18,0.00041095,18]
[342880776,1732192253947,-605.83663763,0.00041095,18]
[342880778,1732192253958,-663.65,0.00041095,18]
[342880780,1732192253967,-875.51,0.00041095,18]
[342880782,1732192253978,-500.0,0.00041095,18]
[342880784,1732192253988,-304.90226617,0.00041095,18]
[342880786,1732192253998,-1273.19,0.00041095,18]
[342880788,1732192254008,-301.08886165,0.00041095,18]
[342880790,1732192254018,-516.17,0.00041095,18]
[342880792,1732192254029,-500.0,0.00041095,18]
[342880794,1732192254039,-500.0,0.00041095,18]
[342880796,1732192254050,-500.0,0.00041095,18]
[342880798,1732192254059,-500.0,0.00041095,18]
[342880801,1732192254069,-1184.25,0.00041095,18]
[342880803,1732192254079,-500.0,0.00041095,18]
[342880805,1732192254089,-1599.24,0.00041095,18]
[342880807,1732192254099,-647.22,0.00041095,18]
[342880809,1732192254108,-500.0,0.00041095,18]
[342880811,1732192254118,-2339.51,0.00041095,18]
[342880813,1732192254127,-176.75525084,0.00041095,18]
[342880815,1732192254137,-500.0,0.00041095,18]
[342880817,1732192254146,-772.23,0.00041095,18]
[342880819,1732192254155,-500.0,0.00041095,18]
[342880821,1732192254164,-1010.94,0.00041095,18]
[342880823,1732192254174,-1284.41,0.00041095,18]
[342880825,1732192254186,-2688.94,0.00041095,18]
[342880827,1732192254195,-1311.73,0.00041095,18]
[342880829,1732192254205,-500.0,0.00041095,18]
[342880831,1732192254215,-500.0,0.00041095,18]
[342880833,1732192254225,-1500.0,0.00041095,120]
[342880835,1732192254236,-500.0,0.00041095,18]
[342880837,1732192254245,-21629.63,0.00041095,18]
[342880839,1732192254255,-500.0,0.00041095,18]
[342880841,1732192254264,-2446.86,0.00041095,18]
[342880843,1732192254274,-500.0,0.00041095,18]
[342880845,1732192254283,-500.0,0.00041095,18]
[342880847,1732192254294,-1617.63,0.00041095,18]
[342880849,1732192254304,-500.0,0.00041095,18]
[342880851,1732192254314,-5897.19,0.00041095,18]
[342880853,1732192254323,-2027.58,0.00041095,18]
[342880855,1732192254333,-500.0,0.00041095,18]
[342880857,1732192254343,-1423.13,0.00041095,18]
[342880859,1732192254354,-1133.16,0.00041095,18]
[342880861,1732192254366,-500.0,0.00041095,18]
[342880863,1732192254377,-500.0,0.00041095,18]
[342880865,1732192254388,-500.0,0.00041095,18]
[342880867,1732192254398,-5949.26,0.00041095,18]